fUST/lending_fUST_20240115
["ID","MTS","AMOUNT","RATE_DAILY","PERIOD"]
[311639444,1705277439743,-500.0,0.00027397,2]
[311639446,1705277439753,-500.0,0.00027397,2]
[311639448,1705277439761,-500.0,0.00027397,2]
[311639450,1705277439771,-500.0,0.00027397,2]
[311639451,1705277439780,-373.72376298,0.00027397,2]
[311639453,1705277439790,-500.0,0.00027397,2]
[311639455,1705277439799,-500.0,0.00027397,2]
[311639457,1705277439809,-500.0,0.00027397,2]
[311639459,1705277439818,-500.0,0.00027397,2]
[311639461,1705277439827,-817.97,0.00027397,2]
[311639463,1705277439836,-500.0,0.00027397,2]
[311639465,1705277439846,-500.0,0.00027397,2]
[311639467,1705277439855,-500.0,0.00027397,2]
[311639469,1705277439865,-197.21554855,0.00027397,2]
[311639471,1705277439874,-827.46,0.00027397,2]
[311639473,1705277439884,-1132.4,0.00027397,2]
[311639475,1705277439896,-500.0,0.00027397,2]
[311639477,1705277439905,-510.88502478,0.00027397,2]
[311639479,1705277439915,-500.0,0.00027397,2]
[311639481,1705277439924,-500.0,0.00027397,2]
[311639483,1705277439933,-521.1942348,0.00027397,2]
[311639485,1705277439943,-500.0,0.00027397,2]
[311639487,1705277439951,-500.0,0.00027397,2]
[311639489,1705277439961,-500.0,0.00027397,2]
[311639491,1705277439970,-503.8784956,0.00027397,2]
[311639493,1705277439979,-619.09681012,0.00027397,2]
[311639495,1705277439988,-516.52958642,0.00027397,2]
[311639506,1705277440086,-500.0,0.00027397,2]
[311639508,1705277440096,-500.0,0.00027397,2]
[311639510,1705277440106,-500.0,0.00027397,2]
[311639512,1705277440115,-500.0,0.00027397,2]
[311639514,1705277440124,-500.0,0.00027397,2]
[311639516,1705277440134,-500.0,0.00027397,2]
[311639518,1705277440146,-500.0,0.00027397,2]
[311639520,1705277440155,-500.0,0.00027397,2]
[311639522,1705277440164,-508.19510463,0.00027397,2]
[311639524,1705277440173,-1137.45,0.00027397,2]
[311639526,1705277440182,-500.0,0.00027397,2]
[311639528,1705277440192,-500.0,0.00027397,2]
[311639530,1705277440200,-500.0,0.00027397,2]
[311639532,1705277440211,-500.0,0.00027397,2]
[311639534,1705277440220,-500.0,0.00027397,2]
[311639536,1705277440229,-500.0,0.00027397,2]
[311639538,1705277440239,-500.0,0.00027397,2]
[311639540,1705277440249,-500.0,0.00027397,2]
[311639542,1705277440259,-500.0,0.00027397,2]
[311639544,1705277440268,-500.0,0.00027397,2]
[311639546,1705277440277,-500.0,0.00027397,2]
[311639548,1705277440286,-500.0,0.00027397,2]
[311639550,1705277440296,-500.0,0.00027397,2]
[311639552,1705277440306,-500.0,0.00027397,2]
[311639555,1705277440316,-500.0,0.00027397,2]
[311639557,1705277440326,-500.0,0.00027397,2]
[311639559,1705277440335,-500.0,0.00027397,2]
[311639561,1705277440344,-500.0,0.00027397,2]
[311639563,1705277440354,-500.0,0.00027397,2]
[311639565,1705277440364,-500.0,0.00027397,2]
[311639567,1705277440373,-500.0,0.00027397,2]
[311639570,1705277440382,-500.0,0.00027397,2]
[311639573,1705277440394,-500.0,0.00027397,2]
[311639576,1705277440403,-500.0,0.00027397,2]
[311639579,1705277440412,-500.0,0.00027397,2]
[311639581,1705277440421,-500.0,0.00027397,2]
[311639584,1705277440430,-500.0,0.00027397,2]
[311639587,1705277440440,-155.0,0.00027397,2]
[311639590,1705277440450,-500.0,0.00027397,2]
[311639592,1705277440458,-500.0,0.00027397,2]
[311639595,1705277440468,-500.0,0.00027397,2]
[311639597,1705277440478,-500.0,0.00027397,2]
[311639600,1705277440487,-2887.06,0.00027397,2]
[311639603,1705277440497,-707.54,0.00027397,2]
[311639605,1705277440506,-500.0,0.00027397,2]
[311639606,1705277440517,-166.15850986,0.00027397,2]
[311639608,1705277440527,-500.0,0.00027397,2]
[311639610,1705277440539,-500.0,0.00027397,2]
[311639612,1705277440549,-591.41639801,0.00027397,2]
[311639614,1705277440558,-500.0,0.00027397,2]
[311639616,1705277440568,-500.0,0.00027397,2]
[311639618,1705277440577,-620.59724494,0.00027397,2]
[311639620,1705277440587,-500.0,0.00027397,2]
[311639623,1705277440597,-500.0,0.00027397,2]
[311639624,1705277440606,-500.0,0.00027397,2]
[311639626,1705277440615,-500.0,0.00027397,2]
[311639628,1705277440625,-500.0,0.00027397,2]
[311639630,1705277440634,-500.0,0.00027397,2]
[311639632,1705277440645,-500.0,0.00027397,2]
[311639634,1705277440654,-500.0,0.00027397,2]
[311639636,1705277440662,-168.03312966,0.00027397,2]
[311639638,1705277440672,-500.0,0.00027397,2]
[311639640,1705277440681,-500.0,0.00027397,2]
[311639642,1705277440690,-698.26,0.00027397,2]
[311639644,1705277440698,-500.0,0.00027397,2]
[311639646,1705277440707,-500.0,0.00027397,2]
[311639648,1705277440716,-500.0,0.00027397,2]
[311639650,1705277440725,-500.0,0.00027397,2]
[311639652,1705277440734,-500.0,0.00027397,2]
[311639654,1705277440743,-500.0,0.00027397,2]
[311639656,1705277440753,-500.0,0.00027397,2]
[311639658,1705277440762,-500.0,0.00027397,2]
[311639660,1705277440771,-954.52,0.00027397,2]
[311639662,1705277440780,-500.0,0.00027397,2]
[311639664,1705277440789,-500.0,0.00027397,2]
[311639666,1705277440798,-1751.66,0.00027397,2]
[311639668,1705277440807,-500.0,0.00027397,2]
[311639670,1705277440816,-301.46968522,0.00027397,2]
[311639672,1705277440825,-500.0,0.00027397,2]
[311639674,1705277440834,-500.0,0.00027397,2]
[311639676,1705277440843,-500.0,0.00027397,2]
[311639678,1705277440853,-279.36254322,0.00027397,2]
[311639680,1705277440862,-500.0,0.00027397,2]
[311639682,1705277440871,-1418.75,0.00027397,2]
[311639684,1705277440880,-500.0,0.00027397,2]
[311639686,1705277440890,-500.0,0.00027397,2]
[311639688,1705277440899,-500.0,0.00027397,2]
[311639690,1705277440908,-1463.2,0.00027397,2]
[311639692,1705277440917,-500.0,0.00027397,2]
[311639694,1705277440926,-500.0,0.00027397,2]
[311639696,1705277440935,-500.0,0.00027397,2]
[311639698,1705277440945,-500.0,0.00027397,2]
[311639700,1705277440958,-500.0,0.00027397,2]
[311639702,1705277440967,-716.11,0.00027397,2]
[311639704,1705277440977,-500.0,0.00027397,2]
[311639706,1705277440986,-500.0,0.00027397,2]
[311639708,1705277440996,-2794.31,0.00027397,2]
[311639710,1705277441006,-500.0,0.00027397,2]
[311639712,1705277441015,-500.0,0.00027397,2]
[311639714,1705277441025,-500.0,0.00027397,2]
[311639716,1705277441034,-500.0,0.00027397,2]
[311639718,1705277441044,-500.0,0.00027397,2]
[311639720,1705277441053,-383.11577033,0.00027397,2]
[311639722,1705277441062,-500.0,0.00027397,2]
[311639724,1705277441072,-500.0,0.00027397,2]
[311639726,1705277441081,-500.0,0.00027397,2]
[311639728,1705277441090,-500.0,0.00027397,2]
[311639730,1705277441099,-500.0,0.00027397,2]
[311639732,1705277441108,-500.0,0.00027397,2]
[311639734,1705277441117,-500.0,0.00027397,2]
[311639736,1705277441126,-500.0,0.00027397,2]
[311639738,1705277441135,-500.0,0.00027397,2]
[311639740,1705277441149,-500.0,0.00027397,2]
[311639742,1705277441158,-3683.12,0.00027397,2]
[311639744,1705277441167,-500.0,0.00027397,2]
[311639746,1705277441177,-202.2453661,0.00027397,2]
[311639748,1705277441186,-500.0,0.00027397,2]
[311639749,1705277441195,-500.0,0.00027397,2]
[311639752,1705277441205,-500.0,0.00027397,2]
[311639753,1705277441214,-500.0,0.00027397,2]
[311639755,1705277441223,-500.0,0.00027397,2]
[311639757,1705277441232,-500.0,0.00027397,2]
[311639759,1705277441242,-500.0,0.00027397,2]
[311639761,1705277441251,-500.0,0.00027397,2]
[311639763,1705277441260,-500.0,0.00027397,2]
[311639765,1705277441270,-500.0,0.00027397,2]
[311639767,1705277441279,-500.0,0.00027397,2]
[311639769,1705277441288,-904.03,0.00027397,2]
[311639771,1705277441297,-500.0,0.00027397,2]
[311639773,1705277441307,-325.550196,0.00027397,2]
[311639775,1705277441316,-500.0,0.00027397,2]
[311639777,1705277441325,-500.0,0.00027397,2]
[311639779,1705277441335,-500.0,0.00027397,2]
[311639781,1705277441345,-500.0,0.00027397,2]
[311639783,1705277441354,-5038.78,0.00027397,2]
[311639785,1705277441364,-24673.79,0.00027397,2]
[311639787,1705277441373,-500.0,0.00027397,2]
[311639789,1705277441382,-500.0,0.00027397,2]
[311639791,1705277441396,-500.0,0.00027397,2]
[311639793,1705277441405,-500.0,0.00027397,2]
[311639795,1705277441414,-500.0,0.00027397,2]
[311639797,1705277441424,-500.0,0.00027397,2]
[311639799,1705277441433,-1995.0,0.00027397,2]
[311639801,1705277441443,-202.9357647,0.00027397,2]
[311639803,1705277441452,-500.0,0.00027397,2]
[311639805,1705277441462,-500.0,0.00027397,2]
[311639807,1705277441471,-500.0,0.00027397,2]
[311639809,1705277441481,-500.0,0.00027397,2]
[311639811,1705277441490,-500.0,0.00027397,2]
[311639813,1705277441499,-500.0,0.00027397,2]
[311639815,1705277441509,-500.0,0.00027397,2]
[311639817,1705277441522,-500.0,0.00027397,2]
[311639819,1705277441533,-1000.0,0.00027397,2]
[311639821,1705277441547,-500.0,0.00027397,2]
[311639823,1705277441556,-500.0,0.00027397,2]
[311639825,1705277441567,-500.0,0.00027397,2]
[311639827,1705277441576,-218.24059673,0.00027397,2]
[311639829,1705277441585,-505.05743799,0.00027397,2]
[311639831,1705277441595,-793.88,0.00027397,2]
[311639832,1705277441604,-16490.96,0.00027397,2]
[311639834,1705277441614,-500.0,0.00027397,2]
[311639837,1705277441624,-500.0,0.00027397,2]
[311639838,1705277441634,-500.0,0.00027397,2]
[311639840,1705277441646,-500.0,0.00027397,2]
[311639842,1705277441656,-500.0,0.00027397,2]
[311639844,1705277441665,-500.0,0.00027397,2]
[311639846,1705277441675,-500.94425722,0.00027397,2]
[311639848,1705277441684,-500.0,0.00027397,2]
[311639850,1705277441693,-500.0,0.00027397,2]
[311639852,1705277441702,-500.0,0.00027397,5]
[311639854,1705277441711,-500.0,0.00027397,2]
[311639856,1705277441720,-500.0,0.00027397,2]
[311639858,1705277441729,-500.0,0.00027397,2]
[311639860,1705277441739,-6103.69,0.00027397,2]
[311639862,1705277441749,-500.0,0.00027397,2]
[311639864,1705277441758,-500.0,0.00027397,2]
[311639866,1705277441767,-500.0,0.00027397,2]
[311639868,1705277441776,-1286.67,0.00027397,2]
[311639869,1705277441786,-500.0,0.00027397,2]
[311639871,1705277441795,-745.19,0.00027397,2]
[311639873,1705277441805,-191.76498961,0.00027397,2]
[311639875,1705277441814,-702.05,0.00027397,2]
[311639877,1705277441823,-501.91288507,0.00027397,2]
[311639879,1705277441832,-500.0,0.00027397,2]
[311639881,1705277441841,-1067.84,0.00027397,2]
[311639883,1705277441851,-500.0,0.00027397,2]
[311639885,1705277441860,-1446.1,0.00027397,2]
[311639887,1705277441870,-500.0,0.00027397,2]
[311639889,1705277441879,-500.0,0.00027397,2]
[311639891,1705277441891,-500.0,0.00027397,2]
[311639893,1705277441900,-500.0,0.00027397,2]
[311639895,1705277441910,-500.0,0.00027397,2]
[311639897,1705277441919,-500.0,0.00027397,2]
[311639900,1705277441937,-2549.74,0.00027397,2]
[311639902,1705277441949,-500.0,0.00027397,2]
[311639904,1705277441958,-7622.21,0.00027397,2]
[311639906,1705277441968,-500.0,0.00027397,2]
[311639908,1705277441978,-525.3,0.00027397,2]
[311639910,1705277441987,-500.0,0.00027397,2]
[311639912,1705277441997,-500.0,0.00027397,2]
[311639914,1705277442006,-662.94,0.00027397,2]
[311639929,1705277442141,-500.0,0.00027397,2]
[311639931,1705277442150,-8060.47,0.00027397,2]
[311639933,1705277442160,-2378.52,0.00027397,2]
[311639935,1705277442170,-500.0,0.00027397,2]
[311639937,1705277442180,-500.0,0.00027397,2]
[311639939,1705277442190,-500.0,0.00027397,2]
[311639941,1705277442199,-537.38332628,0.00027397,2]
[311639943,1705277442209,-500.0,0.00027397,2]
[311639944,1705277442218,-655.30601003,0.00027397,2]
[311639946,1705277442228,-153.0,0.000274,2]
[311639948,1705277442237,-153.0,0.000274,2]
[311639950,1705277442247,-388.0253398,0.000274,2]
[311639952,1705277442257,-153.0,0.000274,2]
[311639954,1705277442267,-153.0,0.00027478,2]
[311639956,1705277442277,-200.0,0.00027497,15]
[311639958,1705277442288,-153.0,0.000275,2]
[311639960,1705277442299,-500.0,0.00027534,2]
[311639962,1705277442308,-500.0,0.0002757,2]
[311639964,1705277442318,-500.0,0.00027668,2]
[311639966,1705277442328,-500.0,0.00027668,2]
[311639968,1705277442338,-500.0,0.00027668,2]
[311639970,1705277442348,-504.25714993,0.00027668,2]
[311639972,1705277442357,-500.0,0.00027668,2]
[311639975,1705277442367,-500.0,0.00027668,2]
[311639976,1705277442377,-156.2615804,0.00027668,2]
[311639978,1705277442386,-500.0,0.00027668,2]
[311639980,1705277442399,-239.41948406,0.00027668,2]
[311639982,1705277442408,-500.0,0.00027668,2]
[311639984,1705277442418,-302.73089915,0.00027668,2]
[311639986,1705277442427,-500.0,0.00027668,2]
[311639988,1705277442437,-500.0,0.00027668,2]
[311639990,1705277442447,-500.0,0.00027668,2]
[311639992,1705277442457,-500.0,0.00027668,2]
[311639994,1705277442467,-500.0,0.00027668,2]
[311639996,1705277442476,-213.31239366,0.00027668,2]
[311639998,1705277442485,-500.0,0.00027668,2]
[311640000,1705277442494,-500.0,0.00027668,2]
[311640002,1705277442504,-500.0,0.00027668,2]
[311640004,1705277442514,-500.0,0.00027668,2]
[311640006,1705277442524,-500.0,0.00027668,2]
[311640008,1705277442534,-500.0,0.00027668,2]
[311640011,1705277442544,-500.0,0.00027668,2]
[311640012,1705277442553,-293.79604819,0.00027668,2]
[311640014,1705277442563,-500.0,0.00027668,2]
[311640017,1705277442572,-500.0,0.00027668,2]
[311640018,1705277442582,-500.0,0.00027668,2]
[311640021,1705277442591,-500.0,0.00027668,2]
[311640022,1705277442603,-500.0,0.00027668,2]
[311640024,1705277442612,-500.0,0.00027668,2]
[311640026,1705277442622,-500.0,0.00027668,2]
[311640028,1705277442631,-500.0,0.00027668,2]
[311640030,1705277442643,-500.0,0.00027668,2]
[311640031,1705277442652,-500.0,0.00027668,2]
[311640032,1705277442661,-500.0,0.00027668,2]
[311640033,1705277442670,-637.50173475,0.00027668,2]
[311640034,1705277442679,-500.0,0.00027668,2]
[311640035,1705277442689,-500.0,0.00027668,2]
[311640036,1705277442698,-551.35486565,0.0002767,14]
[311640037,1705277442709,-500.0,0.0002767,2]
[311640038,1705277442718,-500.0,0.0002767,2]
[311640039,1705277442728,-500.0,0.0002767,2]
[311640040,1705277442739,-500.0,0.00027671,2]
[311640041,1705277442748,-500.0,0.00027671,2]
[311640042,1705277442757,-500.0,0.00027671,2]
[311640043,1705277442768,-500.0,0.00027671,2]
[311640044,1705277442781,-500.0,0.00027671,2]
[311640045,1705277442791,-500.0,0.00027671,2]
[311640046,1705277442802,-554.89,0.00027671,2]
[311640047,1705277442813,-500.0,0.00027671,2]
[311640049,1705277442823,-500.0,0.00027671,2]
[311640051,1705277442832,-500.0,0.00027671,2]
[311640052,1705277442842,-500.0,0.00027671,2]
[311640054,1705277442852,-234.14884369,0.00027671,2]
[311640056,1705277442862,-298.10498343,0.00027671,2]
[311640058,1705277442873,-500.0,0.00027671,2]
[311640060,1705277442882,-597.80011119,0.00027671,2]
[311640062,1705277442893,-500.0,0.00027671,2]
[311640063,1705277442902,-500.0,0.00027671,2]
[311640065,1705277442912,-500.0,0.00027671,2]
[311640067,1705277442921,-500.0,0.00027671,2]
[311640069,1705277442931,-1406.84,0.00027671,2]
[311640071,1705277442940,-1275.71,0.00027671,2]
[311640072,1705277442949,-500.0,0.00027671,2]
[311640074,1705277442957,-500.0,0.00027671,2]
[311640076,1705277442966,-500.0,0.00027671,2]
[311640079,1705277442976,-500.0,0.00027671,2]
[311640082,1705277442985,-500.0,0.00027671,2]
[311640085,1705277442994,-500.0,0.00027671,2]
[311640088,1705277443003,-886.5,0.00027671,2]
[311640090,1705277443012,-500.0,0.00027671,2]
[311640092,1705277443021,-500.0,0.00027671,2]
[311640094,1705277443030,-708.57,0.00027671,2]
[311640096,1705277443038,-500.0,0.00027671,2]
[311640098,1705277443048,-500.0,0.00027671,2]
[311640100,1705277443057,-500.0,0.00027671,2]
[311640102,1705277443066,-500.0,0.00027671,2]
[311640104,1705277443076,-500.0,0.00027671,2]
[311640106,1705277443085,-1620.33,0.00027671,2]
[311640108,1705277443094,-500.0,0.00027671,2]
[311640109,1705277443104,-172.71157866,0.00027671,2]
[311640111,1705277443113,-500.0,0.00027671,2]
[311640113,1705277443122,-500.0,0.00027671,2]
[311640115,1705277443132,-500.0,0.00027671,2]
[311640117,1705277443143,-500.0,0.00027671,2]
[311640119,1705277443153,-817.97,0.00027671,2]
[311640121,1705277443162,-500.0,0.00027671,2]
[311640123,1705277443171,-827.46,0.00027671,2]
[311640125,1705277443180,-1132.4,0.00027671,2]
[311640127,1705277443190,-500.0,0.00027671,2]
[311640129,1705277443199,-500.0,0.00027671,2]
[311640131,1705277443208,-500.0,0.00027671,2]
[311640133,1705277443217,-500.0,0.00027671,2]
[311640135,1705277443227,-247.37652584,0.00027671,2]
[311640137,1705277443236,-500.0,0.00027671,2]
[311640139,1705277443245,-500.0,0.00027671,2]
[311640141,1705277443255,-500.0,0.00027671,2]
[311640143,1705277443263,-500.0,0.00027671,2]
[311640145,1705277443272,-500.0,0.00027671,2]
[311640147,1705277443281,-500.0,0.00027671,2]
[311640149,1705277443290,-1137.45,0.00027671,2]
[311640151,1705277443299,-500.0,0.00027671,2]
[311640153,1705277443308,-500.0,0.00027671,2]
[311640155,1705277443318,-500.0,0.00027671,2]
[311640157,1705277443327,-500.0,0.00027671,2]
[311640159,1705277443336,-151.3743688,0.00027671,2]
[311640161,1705277443345,-500.0,0.00027671,2]
[311640163,1705277443354,-500.0,0.00027671,2]
[311640165,1705277443364,-500.0,0.00027671,2]
[311640167,1705277443373,-500.0,0.00027671,2]
[311640169,1705277443383,-500.0,0.00027671,2]
[311640171,1705277443396,-500.0,0.00027671,2]
[311640173,1705277443406,-500.0,0.00027671,2]
[311640175,1705277443415,-500.0,0.00027671,2]
[311640177,1705277443425,-500.0,0.00027671,2]
[311640179,1705277443435,-2887.06,0.00027671,2]
[311640181,1705277443445,-707.54,0.00027671,2]
[311640183,1705277443455,-500.0,0.00027671,2]
[311640185,1705277443465,-500.0,0.00027671,2]
[311640187,1705277443474,-359.68166785,0.00027671,2]
[311640189,1705277443484,-500.0,0.00027671,2]
[311640191,1705277443493,-500.0,0.00027671,2]
[311640193,1705277443503,-500.0,0.00027671,2]
[311640195,1705277443513,-698.26,0.00027671,2]
[311640197,1705277443523,-564.37200595,0.00027671,2]
[311640199,1705277443532,-500.0,0.00027671,2]
[311640201,1705277443543,-954.52,0.00027671,2]
[311640203,1705277443553,-500.0,0.00027671,2]
[311640205,1705277443563,-1751.66,0.00027671,2]
[311640207,1705277443574,-500.0,0.00027671,2]
[311640209,1705277443584,-502.64855068,0.00027671,2]
[311640211,1705277443593,-500.0,0.00027671,2]
[311640213,1705277443603,-1418.75,0.00027671,2]
[311640215,1705277443613,-500.0,0.00027671,2]
[311640217,1705277443623,-500.0,0.00027671,2]
[311640219,1705277443633,-1463.2,0.00027671,2]
[311640221,1705277443645,-500.0,0.00027671,2]
[311640224,1705277443654,-500.0,0.00027671,2]
[311640226,1705277443663,-423.05230909,0.00027671,2]
[311640229,1705277443673,-616.08704125,0.00027671,2]
[311640232,1705277443682,-716.11,0.00027671,2]
[311640235,1705277443691,-500.01851534,0.00027671,2]
[311640237,1705277443700,-275.23629998,0.00027671,2]
[311640239,1705277443710,-2794.31,0.00027671,2]
[311640242,1705277443719,-500.0,0.00027671,2]
[311640243,1705277443730,-500.0,0.00027671,2]
[311640245,1705277443739,-500.0,0.00027671,2]
[311640247,1705277443748,-3683.12,0.00027671,2]
[311640249,1705277443757,-529.01792933,0.00027671,2]
[311640251,1705277443766,-500.0,0.00027671,2]
[311640253,1705277443775,-500.0,0.00027671,2]
[311640255,1705277443785,-376.85988352,0.00027671,2]
[311640257,1705277443795,-500.0,0.00027671,2]
[311640259,1705277443805,-500.0,0.00027671,2]
[311640261,1705277443814,-500.0,0.00027671,2]
[311640263,1705277443823,-500.0,0.00027671,2]
[311640265,1705277443833,-500.0,0.00027671,2]
[311640267,1705277443842,-904.03,0.00027671,2]
[311640269,1705277443851,-500.0,0.00027671,2]
[311640271,1705277443860,-500.0,0.00027671,2]
[311640273,1705277443869,-500.0,0.00027671,2]
[311640276,1705277443879,-500.0,0.00027671,2]
[311640278,1705277443889,-5038.78,0.00027671,2]
[311640279,1705277443900,-24673.79,0.00027671,2]
[311640282,1705277443909,-400.0,0.00027671,2]
[311640284,1705277443919,-502.24841496,0.00027671,2]
[311640293,1705277444003,-500.0,0.00027671,2]
[311640295,1705277444013,-500.0,0.00027671,2]
[311640297,1705277444023,-500.0,0.00027671,2]
[311640299,1705277444032,-1995.0,0.00027671,2]
[311640301,1705277444042,-500.0,0.00027671,2]
[311640303,1705277444051,-500.0,0.00027671,2]
[311640305,1705277444060,-500.0,0.00027671,2]
[311640307,1705277444069,-500.0,0.00027671,2]
[311640309,1705277444080,-500.0,0.00027671,2]
[311640311,1705277444089,-500.0,0.00027671,2]
[311640313,1705277444099,-1000.0,0.00027671,2]
[311640315,1705277444108,-500.0,0.00027671,2]
[311640317,1705277444117,-500.0,0.00027671,2]
[311640319,1705277444126,-793.88,0.00027671,2]
[311640321,1705277444135,-16490.96,0.00027671,2]
[311640323,1705277444147,-500.0,0.00027671,2]
[311640325,1705277444156,-500.0,0.00027671,2]
[311640327,1705277444166,-500.0,0.00027671,2]
[311640329,1705277444175,-500.0,0.00027671,2]
[311640331,1705277444185,-500.0,0.00027671,2]
[311640333,1705277444194,-500.0,0.00027671,2]
[311640335,1705277444203,-500.0,0.00027671,2]
[311640337,1705277444212,-502.50157674,0.00027671,5]
[311640339,1705277444221,-6103.69,0.00027671,2]
[311640341,1705277444230,-384.59676666,0.00027671,2]
[311640343,1705277444240,-500.0,0.00027671,2]
[311640345,1705277444249,-1286.67,0.00027671,2]
[311640347,1705277444258,-517.09868122,0.00027671,2]
[311640349,1705277444267,-745.19,0.00027671,2]
[311640351,1705277444276,-702.05,0.00027671,2]
[311640353,1705277444285,-1067.84,0.00027671,2]
[311640355,1705277444294,-1446.1,0.00027671,2]
[311640357,1705277444303,-502.88239032,0.00027671,2]
[311640359,1705277444312,-500.0,0.00027671,2]
[311640361,1705277444322,-2549.74,0.00027671,2]
[311640363,1705277444331,-500.0,0.00027671,2]
[311640365,1705277444340,-7622.21,0.00027671,2]
[311640367,1705277444349,-512.92548497,0.00027671,2]
[311640369,1705277444358,-525.3,0.00027671,2]
[311640371,1705277444367,-500.0,0.00027671,2]
[311640373,1705277444377,-500.0,0.00027671,2]
[311640375,1705277444386,-662.94,0.00027671,2]
[311640377,1705277444396,-8060.47,0.00027671,2]
[311640379,1705277444406,-2378.52,0.00027671,2]
[311640381,1705277444415,-500.0,0.00027671,2]
[311640383,1705277444425,-500.0,0.00027671,2]
[311640385,1705277444434,-500.0,0.00027671,2]
[311640387,1705277444443,-688.18928243,0.000277,2]
[311640389,1705277444452,-227.4351381,0.00027944,4]
[311640391,1705277444461,-500.0,0.00027944,2]
[311640393,1705277444470,-500.0,0.00027944,2]
[311640395,1705277444478,-500.0,0.00027944,2]
[311640397,1705277444487,-500.0,0.00027945,2]
[311640399,1705277444497,-500.0,0.00027945,2]
[311640401,1705277444506,-554.89,0.00027945,2]
[311640403,1705277444516,-500.0,0.00027945,2]
[311640405,1705277444525,-500.0,0.00027945,2]
[311640407,1705277444534,-500.0,0.00027945,2]
[311640409,1705277444543,-500.0,0.00027945,2]
[311640411,1705277444553,-503.70058373,0.00027945,2]
[311640413,1705277444562,-474.51794372,0.00027945,2]
[311640415,1705277444571,-500.0,0.00027945,2]
[311640417,1705277444581,-1406.84,0.00027945,2]
[311640419,1705277444590,-1275.71,0.00027945,2]
[311640421,1705277444599,-500.0,0.00027945,2]
[311640423,1705277444608,-500.0,0.00027945,2]
[311640425,1705277444617,-500.0,0.00027945,2]
[311640427,1705277444626,-500.0,0.00027945,2]
[311640429,1705277444635,-500.0,0.00027945,2]
[311640431,1705277444647,-886.5,0.00027945,2]
[311640433,1705277444656,-500.0,0.00027945,2]
[311640435,1705277444665,-708.57,0.00027945,2]
[311640437,1705277444674,-500.0,0.00027945,2]
[311640439,1705277444683,-500.0,0.00027945,2]
[311640441,1705277444692,-500.0,0.00027945,2]
[311640443,1705277444701,-1620.33,0.00027945,2]
[311640445,1705277444710,-500.0,0.00027945,2]
[311640447,1705277444719,-500.0,0.00027945,2]
[311640449,1705277444729,-817.97,0.00027945,2]
[311640451,1705277444738,-827.46,0.00027945,2]
[311640453,1705277444747,-1132.4,0.00027945,2]
[311640455,1705277444756,-500.0,0.00027945,2]
[311640457,1705277444765,-500.0,0.00027945,2]
[311640459,1705277444774,-583.1174725,0.00027945,2]
[311640461,1705277444783,-500.0,0.00027945,2]
[311640463,1705277444792,-500.0,0.00027945,2]
[311640465,1705277444801,-500.0,0.00027945,2]